bitfinex/quotes_BTCUSD_20250225
["timestamp","ask_amount","ask_price","bid_price","bid_amount"]
[1740494143261,0.468673,88929.0,88928.0,0.0016966]
[1740494143899,0.468673,88929.0,88928.0,6e-07]
[1740494144146,0.58252996,88929.0,88928.0,6e-07]
[1740494144357,0.58252996,88929.0,88892.0,0.0495]
[1740494144358,0.4687,88915.0,88914.0,1e-07]
[1740494145920,0.224904,88927.0,88914.0,1e-07]
[1740494145921,0.483487,88955.0,88914.0,1e-07]
[1740494146133,0.168673,88929.0,88928.0,0.1]
[1740494146542,0.168668,88932.0,88931.0,0.1]
[1740494146909,0.468668,88932.0,88931.0,0.1]
[1740494147116,0.168662,88935.0,88934.0,0.1]
[1740494147333,0.03267814,88955.0,88952.0,0.1]
[1740494147525,0.168628,88953.0,88952.0,0.1]
[1740494147839,0.2575089,88955.0,88949.0,0.1]
[1740494148146,0.168653,88940.0,88939.0,0.1]
[1740494148321,0.168634,88950.0,88949.0,0.1]
[1740494148741,0.168622,88956.0,88955.0,0.1]
[1740494150005,0.25657912,88959.0,88912.0,0.0489]
[1740494150006,0.03175712,88959.0,88912.0,0.0489]
[1740494150216,0.468643,88945.0,88944.0,0.1]
[1740494150454,0.468643,88945.0,88944.0,0.11454085]
[1740494151497,0.468643,88945.0,88917.0,0.08970169]
[1740494151498,0.080301,89005.0,88962.0,0.01454085]
[1740494151709,0.168609,88963.0,88962.0,0.01454085]
[1740494152108,0.3,88964.0,88952.0,0.1]
[1740494152314,0.168671,88930.0,88929.0,0.0454]
[1740494152518,0.09999918,89004.0,88948.0,0.1]
[1740494152725,1.123479,89010.0,88961.0,0.11454085]
[1740494152836,0.09999918,89013.0,88972.0,0.1]
[1740494153046,0.46859,88973.0,88972.0,0.11454085]
[1740494153444,0.224753,88987.0,88973.0,0.01454085]
[1740494153676,0.03179014,88991.0,88978.0,0.01454085]
[1740494153884,0.03179014,88991.0,88977.0,0.08970169]
[1740494153885,0.001701,89005.0,89003.0,0.1]
[1740494154133,0.168599,88968.0,88967.0,0.1494]
[1740494154742,0.168599,88968.0,88967.0,0.16394085]
[1740494155058,0.168598,88969.0,88968.0,0.11454085]
[1740494155861,0.168598,88969.0,88956.0,0.1]
[1740494155862,0.224819,88961.0,88956.0,0.1]
[1740494156035,0.168624,88955.0,88954.0,0.1]
[1740494156237,0.3,88960.0,88959.0,0.1]
[1740494156238,0.468615,88960.0,88959.0,0.1]
[1740494156970,0.468615,88960.0,88959.0,0.11454085]
[1740494157341,0.168603,88966.0,88965.0,0.11454085]
[1740494157541,0.468603,88966.0,88965.0,0.11454085]
[1740494157703,0.3,88966.0,88956.0,0.1]
[1740494157905,0.224801,88968.0,88945.0,0.0467]
[1740494157906,0.168641,88946.0,88945.0,0.0467]
[1740494158268,0.468643,88945.0,88944.0,0.1]
[1740494158439,0.468643,88945.0,88944.0,0.11454085]
[1740494158846,0.468643,88945.0,88944.0,0.1]
[1740494159050,0.3,88945.0,88944.0,0.11454085]
[1740494159250,0.168641,88946.0,88945.0,0.11454085]
[1740494159633,0.168643,88945.0,88944.0,0.1]
[1740494159855,0.168643,88945.0,88944.0,0.11454085]
[1740494160592,0.168626,88954.0,88953.0,0.11454085]
[1740494160791,0.09999918,88993.0,88959.0,0.1]
[1740494161001,0.168607,88964.0,88963.0,0.1]
[1740494161134,0.168586,88975.0,88974.0,0.1]
[1740494161343,0.3,88969.0,88954.0,0.1]
[1740494161550,0.3,88967.0,88953.0,0.1]
[1740494161756,0.468626,88954.0,88953.0,0.1]
[1740494161967,0.07456916,89028.0,88953.0,0.11]
[1740494162166,0.09999918,89012.0,88967.0,0.1]
[1740494162379,1.123385,89017.0,88971.0,0.1]
[1740494162589,0.168577,88980.0,88979.0,0.1]
[1740494163004,0.224762,88983.0,88966.0,0.0479]
[1740494163005,0.224762,88983.0,88981.0,0.1]
[1740494163232,0.09999918,89012.0,88947.0,0.0492]
[1740494163454,0.08970169,88992.0,88946.0,0.00352283]
[1740494163682,0.468639,88947.0,88946.0,0.10352283]
[1740494163870,0.468639,88947.0,88946.0,0.00352283]
[1740494164082,0.468639,88947.0,88946.0,8.3e-07]
[1740494164330,0.224824,88959.0,88909.0,0.0755]
[1740494164331,0.4687,88915.0,88914.0,0.1000001]
[1740494164557,0.4687,88915.0,88914.0,1e-07]
[1740494165042,0.4687,88915.0,88914.0,0.1000001]
[1740494165519,0.4687,88915.0,88914.0,1e-07]
[1740494166418,0.4687,88915.0,88914.0,0.1000001]
[1740494166656,0.4687,88915.0,88914.0,1e-07]
[1740494167888,0.4687,88915.0,88914.0,0.11454095]
[1740494168102,0.224914,88923.0,88914.0,0.11454095]
[1740494168103,0.06262742,88964.0,88928.0,0.1]
[1740494168308,0.168671,88930.0,88929.0,0.01454085]
[1740494168523,0.16869,88920.0,88919.0,0.1]
[1740494168730,0.1687,88915.0,88914.0,1e-07]
[1740494169216,0.4687,88915.0,88914.0,1e-07]
[1740494169444,0.4687,88915.0,88914.0,0.1000001]
[1740494169655,0.4687,88915.0,88914.0,0.01454095]
[1740494169853,0.3,88915.0,88914.0,0.01454095]
[1740494170061,0.168681,88925.0,88924.0,0.11454085]
[1740494170285,0.09938512,88967.0,88932.0,0.1]
[1740494170494,0.09938512,88967.0,88914.0,1e-07]
[1740494170495,0.224824,88959.0,88951.0,0.11454085]
[1740494170723,0.224824,88959.0,88918.0,0.08970169]
[1740494170724,0.09938512,88967.0,88966.0,0.11454085]
[1740494170929,0.26798612,88967.0,88966.0,0.11454085]
[1740494171153,0.09938512,88967.0,88966.0,0.11454085]
[1740494171360,0.09938512,88967.0,88966.0,0.28314385]
[1740494171566,0.09938512,88967.0,88966.0,0.11454085]
[1740494171779,0.26798612,88967.0,88966.0,0.11454085]
[1740494172001,0.26798612,88967.0,88966.0,0.39689138]
[1740494172002,0.09938512,88967.0,88966.0,0.39689138]
[1740494172205,0.09938512,88967.0,88966.0,0.44409138]
[1740494172418,0.449177,89052.0,89004.0,0.1]
[1740494172625,0.168529,89006.0,89004.0,0.11454085]
[1740494172843,0.301701,89005.0,89004.0,0.11454085]
[1740494173045,0.001701,89005.0,89004.0,0.29452594]
[1740494173284,0.001701,89005.0,89004.0,0.28307185]
[1740494173524,0.001701,89005.0,89004.0,0.39681938]
[1740494174005,0.001701,89005.0,89004.0,0.47181938]
[1740494174477,0.001701,89005.0,89004.0,0.11454085]
[1740494174715,0.001701,89005.0,89004.0,0.01454085]
[1740494175182,0.001701,89005.0,88974.0,0.033777]
[1740494175183,0.468563,88987.0,88986.0,0.1]
[1740494175418,0.168586,88975.0,88974.0,0.033777]
[1740494175638,0.168586,88975.0,88974.0,0.133777]
[1740494175850,0.468563,88987.0,88986.0,0.1]
[1740494176077,0.468567,88985.0,88984.0,0.1]
[1740494176285,0.46858,88978.0,88977.0,0.1]
[1740494176496,0.3,88978.0,88977.0,0.1]
[1740494176705,0.08970169,89023.0,88986.0,0.1]
[1740494176958,0.09813582,89034.0,88989.0,0.1]
[1740494177154,0.18970087,89043.0,89003.0,0.01454085]
[1740494177155,0.226408,89005.0,89003.0,0.01454085]
[1740494177364,0.468531,89004.0,89003.0,0.01454085]
[1740494177918,0.3,89004.0,89003.0,0.11454085]
[1740494178125,0.170231,89005.0,89004.0,0.11454085]
[1740494178326,0.001701,89005.0,88990.0,0.1]
[1740494178548,0.001701,89005.0,88959.0,0.5428]
[1740494178759,0.168598,88969.0,88968.0,0.1008508]
[1740494179182,0.168594,88971.0,88970.0,0.1]
[1740494179386,0.03182051,89053.0,88981.0,0.1]
[1740494179594,0.168598,88969.0,88968.0,0.0008508]
[1740494179971,0.224765,88982.0,88968.0,0.0008508]
[1740494179972,0.0481,88995.0,88972.0,0.1]
[1740494180199,0.224732,88995.0,88979.0,0.01454085]
[1740494180414,0.09999918,89025.0,88979.0,0.01454085]
[1740494180415,0.0481,89014.0,88986.0,0.1]
[1740494180618,0.168554,88993.0,88992.0,0.01454085]
[1740494180820,0.001,89004.0,88969.0,0.3235]
[1740494181023,0.0481,89014.0,88992.0,0.1]
[1740494181259,0.46855,88994.0,88993.0,0.01454085]
[1740494181486,0.468558,88990.0,88989.0,0.01454085]
[1740494181939,0.224666,89021.0,89000.0,0.01454085]
[1740494182205,0.0474,89034.0,89004.0,0.11454085]
[1740494182421,0.002701,89005.0,89004.0,0.11454085]
[1740494182654,0.17123,89005.0,89004.0,0.11454085]
[1740494182879,0.002701,89005.0,89004.0,0.11454085]
[1740494183574,0.001701,89005.0,89004.0,0.11454085]
[1740494183798,0.001701,89005.0,89004.0,0.12599494]
[1740494184025,0.001701,89005.0,89004.0,0.29452594]
[1740494184300,0.001701,89005.0,89004.0,0.40827347]
[1740494184540,0.001701,89005.0,89004.0,0.12599494]
[1740494184774,0.001701,89005.0,89004.0,0.95107347]
[1740494184998,0.001701,89005.0,89004.0,0.95807347]
[1740494185225,0.001701,89005.0,89004.0,1.00767347]
[1740494185448,0.001701,89005.0,89004.0,1.00067347]
[1740494185710,0.001701,89005.0,89004.0,1.00767347]
[1740494186183,0.02770531,89061.0,89040.0,0.1]
[1740494186407,0.168459,89042.0,89041.0,0.01454085]
[1740494186621,0.468459,89042.0,89041.0,0.01454085]
[1740494186837,0.224579,89056.0,89043.0,0.01454085]
[1740494187044,0.1784,89133.0,89043.0,0.01454085]
[1740494187045,0.336751,89087.0,89043.0,0.11611308]
[1740494187248,0.224525,89077.0,89043.0,1.16075194]
[1740494187459,0.168436,89055.0,89043.0,1.16075194]
[1740494187669,0.224525,89077.0,89043.0,1.16075194]
[1740494187905,0.224504,89086.0,89043.0,1.27449947]
[1740494188119,0.001701,89095.0,89057.0,0.28297185]
[1740494188341,0.001701,89095.0,89057.0,0.39671938]
[1740494188992,0.16842,89063.0,89057.0,0.22828838]
[1740494189226,0.168413,89067.0,89057.0,0.40965417]
[1740494189428,0.1701316,89058.0,89057.0,0.02747564]
[1740494189637,0.1701316,89058.0,89057.0,0.01454085]
[1740494189862,0.168454,89045.0,89043.0,4e-05]
[1740494190067,0.168454,89045.0,89044.0,0.3235]
[1740494190274,0.224602,89047.0,89043.0,4e-05]
[1740494190275,0.168456,89044.0,89043.0,4e-05]
[1740494190512,0.168456,89044.0,89043.0,0.10004]
[1740494190723,0.468456,89044.0,89043.0,4e-05]
[1740494191764,0.468456,89044.0,89043.0,0.02158085]
[1740494192193,0.468456,89044.0,89043.0,0.12158085]
[1740494192827,0.16844,89052.0,89051.0,0.11454085]
[1740494193044,0.1701316,89058.0,89057.0,0.1]
[1740494193253,0.1701316,89058.0,89057.0,0.11454085]
[1740494193254,0.0017026,89058.0,89057.0,0.11454085]
[1740494193460,0.1701316,89058.0,89057.0,0.11454085]
[1740494193680,0.0017026,89058.0,89057.0,0.11454085]
[1740494194094,0.0017026,89058.0,89057.0,1.26459123]
[1740494194342,0.1701316,89058.0,89057.0,0.88784085]
[1740494194769,0.4701316,89058.0,89057.0,0.43804085]
[1740494195020,0.168454,89045.0,89044.0,0.3235]
[1740494195224,0.168454,89045.0,89044.0,0.4235]
[1740494195428,0.468456,89044.0,89043.0,0.10004]
[1740494196260,0.468456,89044.0,89043.0,4e-05]
[1740494197108,0.224555,89065.0,89049.0,0.1]
[1740494197317,0.3947056,89058.0,89057.0,0.02154085]
[1740494197521,0.0017026,89058.0,89057.0,0.12154085]
[1740494197738,0.0017026,89058.0,89057.0,0.11454085]
[1740494197943,0.1701316,89058.0,89057.0,0.11454085]
[1740494198153,0.0017026,89058.0,89057.0,0.11454085]
[1740494198359,0.0017026,89058.0,89050.0,0.3235]
[1740494198574,0.168442,89051.0,89050.0,0.4235]
[1740494198784,0.168442,89051.0,89050.0,0.3235]
[1740494199000,0.168442,89051.0,89050.0,0.43804085]
[1740494199001,0.468442,89051.0,89050.0,0.43804085]
[1740494199207,0.0017026,89058.0,89057.0,0.11454085]
[1740494199418,0.2262746,89058.0,89057.0,0.11454085]
[1740494200036,0.0017026,89058.0,89057.0,0.11454085]
[1740494200254,0.0017026,89058.0,89057.0,0.28297185]
[1740494200474,0.0017026,89058.0,89057.0,0.39671938]
[1740494200906,0.0789,89117.0,89057.0,0.39671938]
[1740494200907,0.0452,89120.0,89094.0,0.268361]
[1740494201088,0.168347,89102.0,89094.0,0.60640185]
[1740494201359,0.224411,89123.0,89094.0,0.60640185]
[1740494201574,0.168355,89097.0,89094.0,0.43804085]
[1740494201778,0.224456,89105.0,89094.0,0.60640185]
[1740494201986,0.224449,89107.0,89094.0,0.43804085]
[1740494202202,0.3,89111.0,89094.0,0.60640185]
[1740494202411,0.17006,89095.0,89094.0,0.43804085]
[1740494202620,0.17006,89095.0,89094.0,0.01454085]
[1740494203030,0.224495,89089.0,89076.0,0.3235]
[1740494203237,0.001701,89095.0,89094.0,0.1]
[1740494203238,0.47006,89095.0,89094.0,0.1]
[1740494203441,0.47006,89095.0,89094.0,0.11454085]
[1740494203644,0.47006,89095.0,89094.0,0.12154085]
[1740494204055,0.47006,89095.0,89094.0,0.11454085]
[1740494204514,0.001701,89095.0,89094.0,0.11454085]
[1740494204726,0.001701,89095.0,89094.0,0.12599494]
[1740494204933,0.001701,89095.0,89094.0,0.11454085]
[1740494205135,0.001701,89095.0,89094.0,0.12154085]
[1740494205365,0.001701,89095.0,89094.0,1.15620185]
[1740494205567,0.001701,89095.0,89094.0,1.26994938]
[1740494205786,0.17006,89095.0,89094.0,0.02154085]
[1740494205990,0.17006,89095.0,89094.0,0.12154085]
[1740494206171,0.17006,89095.0,89094.0,0.02154085]
[1740494206373,0.17006,89095.0,89094.0,0.11454085]
[1740494206595,0.17006,89095.0,89094.0,0.01454085]
[1740494206886,0.17106,89095.0,89094.0,0.02154085]
[1740494207304,0.47006,89095.0,89094.0,0.01454085]
[1740494207523,0.47006,89095.0,89061.0,0.3235]
[1740494207524,0.224489,89091.0,89087.0,0.1]
[1740494207766,0.0919007,89095.0,89046.0,0.8663]
[1740494207989,0.001,89095.0,89046.0,0.3235]
[1740494208247,0.168456,89044.0,89043.0,0.0008901]
[1740494208493,0.168456,89044.0,89043.0,1e-07]
[1740494209553,0.468456,89044.0,89043.0,1e-07]
[1740494210179,0.0487,89077.0,89043.0,1e-07]
[1740494210355,0.168456,89044.0,89043.0,1e-07]
[1740494210590,0.224549,89068.0,89045.0,0.01454085]
[1740494210591,0.3,89059.0,89045.0,0.01454085]
[1740494210794,0.3,89067.0,89043.0,0.01454095]
[1740494211196,0.168456,89044.0,89043.0,1e-07]
[1740494211401,0.468456,89044.0,89043.0,1e-07]
[1740494211578,0.468456,89044.0,89043.0,0.0010001]
[1740494213560,0.001,89067.0,89064.0,0.33804085]
[1740494213759,0.001696,89095.0,89070.0,0.168406]
[1740494213967,0.168371,89089.0,89071.0,0.01611252]
[1740494214162,0.168377,89086.0,89074.0,0.01454085]
[1740494214391,0.168374,89087.0,89078.0,0.18293085]
[1740494214596,0.168374,89087.0,89071.0,0.3235]
[1740494214597,0.168387,89081.0,89072.0,0.01454085]
[1740494214819,0.168383,89083.0,89072.0,0.56257785]
[1740494215027,0.001696,89095.0,89073.0,0.67108838]
[1740494215238,0.001696,89095.0,89088.0,0.01454085]
[1740494215642,0.001696,89095.0,89090.0,0.01454085]
[1740494215832,0.001696,89095.0,89094.0,0.18290185]
[1740494216077,0.001696,89095.0,89094.0,0.29664938]
[1740494216285,0.001696,89095.0,89094.0,1.16294938]
[1740494217483,0.001696,89095.0,89094.0,0.33804085]
[1740494217722,0.001696,89095.0,89094.0,0.007]
[1740494218087,0.001696,89095.0,89094.0,0.00704]
[1740494218447,0.470055,89095.0,89094.0,0.00704]
[1740494219091,0.470055,89095.0,89094.0,4e-05]
[1740494219272,0.58391196,89095.0,89094.0,4e-05]
[1740494219573,0.0410307,89094.0,89044.0,0.5428]
[1740494219783,0.001696,89095.0,89046.0,0.01454085]
[1740494219978,0.001696,89095.0,89054.0,0.22458]
[1740494220251,0.001696,89095.0,89045.0,0.63250169]
[1740494220716,0.001696,89095.0,89046.0,0.11374753]
[1740494220955,0.224484,89093.0,89057.0,0.168431]
[1740494221193,0.224484,89093.0,89046.0,0.11374753]
[1740494221194,0.001696,89095.0,89046.0,0.007]
[1740494221429,0.22457,89059.0,89046.0,0.007]
[1740494221663,0.72789918,89094.0,89046.0,0.007]
[1740494221892,0.46845,89047.0,89046.0,0.007]
[1740494222354,0.468456,89044.0,89043.0,1e-07]
[1740494222590,0.3,89044.0,89043.0,1e-07]
[1740494223061,0.02819819,89073.0,89043.0,1e-07]
[1740494223313,0.168456,89044.0,89043.0,0.33804095]
[1740494223547,0.468456,89044.0,89043.0,1e-07]
[1740494223779,0.560322,89044.0,89043.0,1e-07]
[1740494224024,0.468456,89044.0,89043.0,1e-07]
[1740494224257,0.469456,89044.0,89043.0,0.0020001]
[1740494224688,0.001,89044.0,89043.0,0.3255001]
[1740494224895,0.001,89044.0,89043.0,0.34004095]
[1740494225104,0.169456,89044.0,89043.0,0.34004095]
[1740494225482,0.168456,89044.0,89043.0,0.33804095]
[1740494225695,0.168456,89044.0,89043.0,1e-07]
[1740494225847,0.169456,89044.0,89043.0,0.0010001]
[1740494226841,0.168456,89044.0,89043.0,1e-07]
[1740494227245,0.001,89044.0,89043.0,0.0010001]
[1740494227452,0.169456,89044.0,89043.0,0.0010001]
[1740494227866,0.169456,89044.0,89043.0,0.01554095]
[1740494228479,0.168456,89044.0,89043.0,0.01454095]
[1740494228893,0.168456,89044.0,89043.0,1e-07]
[1740494229110,0.23500981,89044.0,89043.0,1e-07]
[1740494229314,0.35690981,89044.0,89043.0,1e-07]
[1740494229562,0.291356,89044.0,89043.0,1e-07]
[1740494229733,0.468543,88998.0,88980.0,0.3235]
[1740494230354,0.09999918,89031.0,88956.0,0.000848]
[1740494230355,0.3,88972.0,88956.0,0.000848]
[1740494230546,0.46862,88957.0,88956.0,0.000848]
[1740494230982,0.16866,88936.0,88935.0,0.08730189]
[1740494231197,0.168659,88937.0,88935.0,0.09603208]
[1740494231409,0.1,88992.0,88935.0,0.08730189]
[1740494231645,0.3,88949.0,88946.0,0.08970169]
[1740494231858,0.168658,88937.0,88935.0,0.41080189]
[1740494232086,0.168681,88925.0,88924.0,0.3235]
[1740494232295,0.1,88974.0,88924.0,0.3235]
[1740494232503,0.224903,88928.0,88924.0,0.3235]
[1740494232708,0.16868,88926.0,88924.0,0.3235]
[1740494232927,0.3,88925.0,88924.0,0.3235]
[1740494233142,0.468696,88917.0,88916.0,0.09753771]
[1740494233752,0.001,88925.0,88922.0,0.168686]
[1740494233959,0.001,88925.0,88917.0,0.22650235]
[1740494234174,0.001,88925.0,88916.0,0.09753771]
[1740494234376,0.168695,88918.0,88916.0,0.09753771]
[1740494234784,0.3,88917.0,88916.0,0.09753771]
[1740494235397,0.0482,88956.0,88917.0,0.01454085]
[1740494235604,0.168693,88919.0,88917.0,0.01454085]
[1740494236019,0.1687,88915.0,88914.0,1e-07]
[1740494236388,0.4687,88915.0,88914.0,1e-07]
[1740494237593,0.47144001,88915.0,88914.0,1e-07]
[1740494237798,0.4687,88915.0,88914.0,1e-07]
[1740494238595,0.468744,88892.0,88891.0,8e-07]
[1740494238809,0.168833,88845.0,88844.0,0.08970169]
[1740494239010,0.3279,88892.0,88861.0,0.08970169]
[1740494239011,0.168801,88862.0,88861.0,0.08970169]
[1740494239437,0.468801,88862.0,88861.0,0.08970169]
[1740494239657,0.168833,88845.0,88844.0,0.41320169]
[1740494239857,0.3,88858.0,88844.0,0.41320169]
[1740494240036,0.02474791,88885.0,88845.0,0.01354085]
[1740494240375,0.337483,88894.0,88853.0,0.08970169]
[1740494240376,0.16881,88857.0,88853.0,0.08970169]
[1740494240584,0.02416398,88896.0,88862.0,0.08970169]
[1740494240785,0.224931,88916.0,88864.0,0.225063]
[1740494240986,0.0752,88926.0,88865.0,0.98162264]
[1740494240987,0.168759,88884.0,88865.0,0.98162264]
[1740494241137,0.168745,88891.0,88872.0,0.08970169]
[1740494241336,0.3,88890.0,88873.0,0.32507505]
[1740494241543,0.224997,88891.0,88873.0,0.3235]
[1740494241748,0.09999918,88938.0,88874.0,0.00157506]
[1740494241954,0.001,88916.0,88876.0,0.01454085]
[1740494242113,0.001,88916.0,88877.0,0.11532242]
[1740494242319,0.168751,88888.0,88882.0,0.01454085]
[1740494242510,0.3279,88936.0,88882.0,0.33804085]
[1740494242711,0.001,88916.0,88882.0,0.3235]
[1740494242946,0.168761,88884.0,88882.0,0.3235]
[1740494243158,0.168761,88884.0,88883.0,0.01454085]
[1740494243702,0.3,88883.0,88882.0,0.3235]
[1740494244119,0.3,88883.0,88854.0,0.3235]
[1740494244273,0.001,88882.0,88855.0,0.00157538]
[1740494244482,0.168814,88855.0,88854.0,0.3235]
[1740494244740,0.3,88856.0,88846.0,0.3235]
[1740494244945,0.3279,88896.0,88831.0,0.5428]
[1740494244946,0.09999918,88890.0,88837.0,0.3235]
[1740494245144,0.337451,88902.0,88847.0,0.08970169]
[1740494245297,0.001,88899.0,88848.0,0.01454085]
[1740494245497,0.001,88899.0,88850.0,0.01454085]
[1740494245708,0.001,88899.0,88847.0,0.08970169]
[1740494245916,0.3,88895.0,88848.0,0.1227177]
[1740494246126,0.3,88873.0,88851.0,0.01454085]
[1740494246322,0.168784,88871.0,88862.0,0.168801]
[1740494246622,0.168787,88869.0,88864.0,0.01454085]
[1740494246841,0.001,88892.0,88866.0,0.01454085]
[1740494246842,0.225993,88892.0,88866.0,0.01454085]
[1740494247045,0.3279,88910.0,88868.0,0.01454085]
[1740494247242,0.001,88909.0,88870.0,0.01454085]
[1740494247453,0.001,88909.0,88872.0,0.01454085]
[1740494247648,0.001,88909.0,88859.0,0.5428]
[1740494247649,0.168776,88875.0,88874.0,0.01454085]
[1740494247857,0.001,88909.0,88874.0,0.33804085]
[1740494248061,0.16877,88879.0,88875.0,0.01454085]
[1740494248266,0.3,88883.0,88875.0,0.33804085]
[1740494248473,0.168774,88876.0,88875.0,0.33804085]
[1740494249153,0.3,88883.0,88875.0,0.33804085]
[1740494249154,0.168761,88883.0,88875.0,0.33804085]
[1740494249363,0.168772,88878.0,88875.0,0.33804085]
[1740494249486,0.3,88891.0,88875.0,0.33804085]
[1740494249713,0.168774,88876.0,88875.0,0.33804085]
[1740494250092,0.3,88881.0,88860.0,0.3235]
[1740494250300,0.468802,88861.0,88860.0,0.3235]
[1740494250514,0.168823,88850.0,88849.0,0.3235]
[1740494250721,0.225097,88851.0,88841.0,0.3235]
[1740494250934,0.3,88856.0,88849.0,0.01454085]
[1740494251148,0.3,88856.0,88841.0,0.3235]
[1740494251347,0.3,88856.0,88843.0,0.225115]
[1740494251554,0.3,88856.0,88849.0,0.01454085]
[1740494251756,0.01696,88913.0,88851.0,0.01454085]
[1740494251960,0.001,88911.0,88853.0,0.01454085]
[1740494252159,0.301,88911.0,88853.0,0.01454085]
[1740494252368,0.08928222,88910.0,88861.0,0.01454085]
[1740494252753,0.168801,88862.0,88861.0,0.01454085]
[1740494252959,0.3,88873.0,88850.0,0.01454085]
[1740494253135,0.168825,88849.0,88842.0,0.08970169]
[1740494253364,0.225093,88852.0,88842.0,0.08970169]
[1740494253491,0.168825,88849.0,88848.0,0.3243494]
[1740494253698,0.468825,88849.0,88848.0,0.0008494]
[1740494254138,0.0467,88879.0,88829.0,0.08970169]
[1740494254338,0.168848,88837.0,88836.0,0.32357]
[1740494254768,0.168848,88837.0,88836.0,7e-05]
[1740494255250,0.19493655,88837.0,88836.0,7e-05]
[1740494255479,0.19493655,88837.0,88827.0,0.0008479]
[1740494255480,0.468865,88828.0,88827.0,0.0008479]
[1740494255653,0.468871,88825.0,88824.0,8e-07]
[1740494255831,0.468917,88801.0,88769.0,0.3235]
[1740494256408,0.468917,88801.0,88772.0,0.16897]
[1740494256662,0.468917,88801.0,88763.0,0.00037476]
[1740494256663,0.468917,88801.0,88767.0,0.168979]
[1740494256936,0.468917,88801.0,88769.0,0.08970169]
[1740494257159,0.3,88801.0,88789.0,0.01454085]
[1740494257387,0.3,88801.0,88800.0,0.168958]
[1740494257595,0.02508855,88837.0,88801.0,0.01454085]
[1740494257807,0.02508855,88837.0,88800.0,0.01458085]
[1740494257808,0.168905,88808.0,88800.0,4e-05]
[1740494258013,0.168917,88801.0,88800.0,4e-05]
[1740494258437,0.3,88802.0,88800.0,4e-05]
[1740494258813,0.02487807,88837.0,88800.0,4e-05]
[1740494259013,0.225156,88827.0,88800.0,4e-05]
[1740494259216,0.001,88826.0,88800.0,4e-05]
[1740494259413,0.001,88852.0,88801.0,1.09458838]
[1740494259616,0.0452,88883.0,88809.0,0.01454085]
[1740494259820,0.08970169,88867.0,88811.0,0.01454085]
[1740494260023,0.08970169,88867.0,88811.0,0.11374753]
[1740494260024,0.3,88840.0,88811.0,0.11374753]
[1740494260203,0.08970169,88858.0,88812.0,0.43882369]
[1740494260382,0.001,88857.0,88813.0,0.5428]
[1740494260585,0.001,88857.0,88815.0,0.01454085]
[1740494260805,0.22515,88830.0,88819.0,0.01454085]
[1740494261020,0.225055,88867.0,88822.0,0.01454085]
[1740494261209,0.001,88866.0,88824.0,0.10424254]
[1740494261413,0.001,88876.0,88825.0,1.10762316]
[1740494261735,0.168852,88836.0,88826.0,0.01454085]
[1740494262084,0.08970169,88866.0,88827.0,0.33537834]
[1740494262270,0.3,88842.0,88828.0,0.225154]
[1740494262480,0.3,88853.0,88837.0,0.01454085]
[1740494262688,0.168861,88830.0,88829.0,0.3235]
[1740494263061,0.168877,88822.0,88818.0,0.3235]
[1740494263232,0.3,88830.0,88818.0,0.3235]
[1740494263442,0.3,88829.0,88819.0,0.03892973]
[1740494263678,0.168878,88822.0,88819.0,0.01454085]
[1740494263974,0.168879,88821.0,88819.0,0.01454085]
[1740494264202,0.168877,88822.0,88819.0,0.01454085]
[1740494264431,0.225171,88822.0,88819.0,0.01454085]
[1740494264631,0.525139,88834.0,88819.0,0.01454085]
[1740494264857,0.525139,88834.0,88818.0,0.3235]
[1740494264858,0.168872,88825.0,88818.0,0.3235]
[1740494265021,0.3,88836.0,88819.0,0.12828838]
[1740494265224,0.0017004,88876.0,88824.0,0.11374753]
[1740494265429,0.0017004,88876.0,88875.0,0.18331685]
[1740494265632,0.1704744,88876.0,88875.0,0.33804085]
[1740494265834,0.1704744,88876.0,88850.0,0.01664]
[1740494265835,0.0017004,88876.0,88851.0,0.3235]
[1740494266007,0.0017004,88876.0,88852.0,0.01454085]
[1740494266208,0.0017004,88876.0,88856.0,0.01454085]
[1740494266408,0.0017004,88876.0,88851.0,0.3235]
[1740494266611,0.16882,88852.0,88851.0,0.3235]
[1740494266813,0.3,88852.0,88829.0,0.8663]
[1740494267018,0.3,88851.0,88829.0,0.3235]
[1740494267217,0.168848,88838.0,88830.0,0.01454085]
[1740494267492,0.001,88856.0,88830.0,0.01454085]
[1740494267692,0.3,88850.0,88830.0,0.01454085]
[1740494267827,0.168859,88831.0,88830.0,0.01454085]
[1740494268033,0.168861,88830.0,88829.0,0.3235]
[1740494268230,0.3,88850.0,88829.0,0.3235]
[1740494268585,0.3,88856.0,88830.0,0.01454085]
[1740494268794,0.168859,88831.0,88830.0,0.01454085]
[1740494269154,0.225139,88834.0,88818.0,0.3235]
[1740494269155,0.168882,88819.0,88818.0,0.3235]
[1740494269556,0.168882,88819.0,88808.0,0.5428]
[1740494269557,0.168901,88809.0,88808.0,0.3235]
[1740494269780,0.3,88825.0,88808.0,0.3235]
[1740494270073,0.16889,88816.0,88809.0,0.01454085]
[1740494270272,0.168881,88820.0,88812.0,0.01454085]
[1740494270415,0.168884,88819.0,88809.0,0.01454085]
[1740494270595,0.3,88855.0,88811.0,0.225197]
[1740494270807,0.001,88854.0,88812.0,0.00157607]
[1740494271011,0.001,88854.0,88813.0,0.99458838]
[1740494271212,0.001,88865.0,88814.0,0.01611677]
[1740494271414,0.3,88847.0,88828.0,0.01454085]
[1740494271609,0.168859,88832.0,88816.0,0.01454085]
[1740494271898,0.001,88865.0,88817.0,0.8663]
[1740494272110,0.08970169,88855.0,88817.0,0.3235]
[1740494272335,0.08970169,88855.0,88827.0,0.01454085]
[1740494272571,0.168865,88828.0,88827.0,0.01454085]
[1740494272825,0.3,88844.0,88818.0,0.01454085]
[1740494273050,0.001,88843.0,88806.0,0.168907]
[1740494273281,0.001,88843.0,88803.0,0.5428]